bitfinex/quotes_ETHUSD_20260306
["timestamp","ask_amount","ask_price","bid_price","bid_amount"]
[1772837593373,0.47845513,1988.0,1987.7,1.25773507]
[1772837593869,2.14245513,1988.0,1987.7,1.25773507]
[1772837594176,0.002,1987.9,1987.7,1.71098065]
[1772837597779,0.002,1987.9,1987.8,0.45324558]
[1772837599190,0.002,1988.0,1987.7,1.25773507]
[1772837599355,1.67,1988.2,1987.8,0.45324558]
[1772837601281,1.73874742,1988.4,1987.8,1.25767064]
[1772837601577,2.15045513,1988.3,1987.9,0.45324558]
[1772837601771,0.47845513,1988.3,1987.9,0.45324558]
[1772837601973,1.672,1988.2,1987.9,0.45324558]
[1772837602874,0.47845513,1988.3,1987.9,0.45324558]
[1772837603081,1.673,1988.2,1987.9,0.45324558]
[1772837603965,3.40891298,1988.2,1987.8,1.71091622]
[1772837604276,3.40891298,1988.2,1987.9,0.45324558]
[1772837604684,3.40991298,1988.2,1987.9,0.45324558]
[1772837606691,2.93145785,1988.2,1987.9,0.45324558]
[1772837607580,0.002,1988.1,1987.9,0.45324558]
[1772837609289,0.002,1988.1,1987.9,0.10230967]
[1772837613489,0.002,1988.1,1987.9,1.35990461]
[1772837615768,0.002,1988.1,1987.9,0.10230967]
[1772837616284,0.002,1988.1,1987.8,1.62630981]
[1772837618292,0.002,1988.1,1987.9,0.36937262]
[1772837620471,0.002,1988.1,1988.0,0.001]
[1772837620670,0.002,1988.1,1988.0,0.0002]
[1772837621407,0.46876649,1988.1,1988.0,0.0002]
[1772837623704,0.002,1988.1,1988.0,0.0002]
[1772837624306,0.46876649,1988.1,1988.0,0.0002]
[1772837626303,0.002,1988.1,1988.0,0.0002]
[1772837627518,0.46876649,1988.1,1988.0,0.0002]
[1772837629620,5.03231922,1988.4,1988.0,0.37888297]
[1772837629788,1.26032454,1988.4,1988.0,0.37888297]
[1772837631015,0.46976649,1988.4,1988.0,0.0002]
[1772837633135,0.46676649,1988.2,1988.0,0.0002]
[1772837634318,1.68,1988.1,1988.0,0.0002]
[1772837635229,0.46676649,1987.9,1987.8,0.001]
[1772837640908,0.47016284,1987.8,1987.6,0.001]
[1772837641119,0.47016284,1987.8,1987.3,0.001]
[1772837641316,0.47016284,1987.6,1987.3,0.001]
[1772837642420,0.48047345,1987.5,1987.3,0.001]
[1772837644427,0.48047345,1987.4,1987.3,0.001]
[1772837646320,1.73839837,1987.4,1987.3,0.001]
[1772837647827,0.48047345,1987.3,1987.1,0.001]
[1772837649935,0.48047345,1987.2,1987.1,0.001]
[1772837651325,2.16447345,1987.2,1987.1,0.001]
[1772837651635,0.48047345,1987.2,1987.1,0.001]
[1772837651802,2.16447345,1987.2,1987.1,0.001]
[1772837652139,3.42252497,1987.2,1987.1,0.001]
[1772837656235,1.73852497,1987.2,1987.1,0.001]
[1772837656536,3.42452497,1987.2,1987.1,0.001]
[1772837657642,1.73852497,1987.2,1987.1,0.001]
[1772837657840,3.42452497,1987.2,1987.1,0.001]
[1772837660740,1.73852497,1987.2,1987.1,0.001]
[1772837660946,3.42652497,1987.2,1987.1,0.001]
[1772837663150,1.73852497,1987.2,1987.1,0.001]
[1772837663320,3.42752497,1987.2,1987.1,0.001]
[1772837664147,0.48047345,1987.1,1986.9,0.001]
[1772837664359,1.25817815,1987.0,1986.9,0.001]
[1772837664556,2.94817815,1987.0,1986.9,0.001]
[1772837664758,1.25817815,1987.0,1986.7,0.40720441]
[1772837665061,1.69,1986.9,1986.7,0.40720441]
[1772837665553,1.25816304,1987.1,1986.7,0.40720441]
[1772837665853,1.69,1987.1,1986.8,0.40675115]
[1772837667358,2.17147345,1987.2,1986.9,0.4072916]
[1772837667559,1.73850132,1987.3,1986.9,0.4072916]
[1772837667764,1.691,1987.1,1986.9,0.4072916]
[1772837669661,1.73841681,1987.4,1987.0,0.40888998]
[1772837669860,1.692,1987.3,1987.0,0.40888998]
[1772837670168,2.17247345,1987.3,1987.0,0.40888998]
[1772837671540,0.48047345,1987.3,1987.0,1.66806807]
[1772837671741,0.002,1987.1,1987.0,1.66806807]
[1772837673160,0.002,1987.2,1987.1,0.40897318]
[1772837673735,0.002,1987.2,1987.1,1.66708802]
[1772837678281,0.002,1987.4,1987.2,0.4094454]
[1772837680085,1e-08,1987.6,1987.3,1.25798822]
[1772837680246,1e-08,1987.6,1987.3,1.74424937]
[1772837682380,1.2597234,1987.8,1987.4,0.48626115]
[1772837682580,2.9327234,1987.8,1987.4,0.48626115]
[1772837683662,0.002,1987.8,1987.4,0.48626115]
[1772837685194,0.002,1987.8,1987.5,1.74412278]
[1772837685485,0.002,1987.7,1987.5,1.74412278]
[1772837685644,0.002,1987.7,1987.6,0.48626115]
[1772837685848,0.002,1987.7,1987.6,0.11934677]
[1772837686656,0.002,1987.8,1987.6,0.48626115]
[1772837689078,0.002,1987.8,1987.6,1.74400848]
[1772837697962,0.002,1987.8,1987.7,0.001]
[1772837701488,0.002,1987.8,1987.7,0.52876669]
[1772837701886,0.002,1987.8,1987.7,0.001]
[1772837702288,0.002,1987.8,1987.7,0.53775365]
[1772837702488,0.52279515,1987.8,1987.7,0.001]
[1772837702684,0.52279515,1987.8,1987.5,0.001]
[1772837702886,0.52079515,1987.7,1987.5,0.001]
[1772837705487,1.77853598,1987.7,1987.5,0.001]
[1772837707312,0.52079515,1987.7,1987.5,0.001]
[1772837709310,0.52279515,1987.8,1987.5,0.001]
[1772837710512,0.52279515,1987.8,1987.6,0.001]
[1772837710813,0.002,1987.7,1987.6,0.001]
[1772837713103,0.002,1987.7,1987.6,0.53775365]
[1772837713303,0.002,1987.8,1987.6,0.53775365]
[1772837715301,0.002,1987.8,1987.7,0.53675365]
[1772837715902,0.002,1987.8,1987.6,0.001]
[1772837715903,0.52279515,1987.8,1987.6,0.001]
[1772837717421,1.77853022,1987.7,1987.6,0.001]
[1772837718925,3.45753022,1987.7,1987.6,0.001]
[1772837719103,0.52079515,1987.6,1987.3,0.001]
[1772837719827,0.52079515,1987.5,1987.3,0.001]
[1772837721829,1.7786225,1987.6,1987.3,0.001]
[1772837722128,1.7786225,1987.6,1987.3,0.003]
[1772837722327,0.52079515,1987.6,1987.3,0.003]
[1772837723002,0.52079515,1987.6,1987.4,0.001]
[1772837727038,2.20379515,1987.7,1987.4,0.001]
[1772837727207,2.20779515,1987.7,1987.4,0.001]
[1772837728142,3.46553244,1987.7,1987.4,0.001]
[1772837728434,3.46653244,1987.7,1987.4,0.001]
[1772837729938,0.002,1987.7,1987.5,0.002]
[1772837730105,0.002,1987.7,1987.5,0.53875365]
[1772837733633,0.60904425,1987.7,1987.5,0.002]
[1772837735041,0.60904425,1987.7,1987.5,0.003]
[1772837737140,1.86678598,1987.7,1987.5,0.003]
[1772837738042,0.60904425,1987.7,1987.5,0.003]
[1772837738215,2.29804425,1987.7,1987.5,0.003]
[1772837738416,2.29804425,1987.7,1987.5,0.001]
[1772837739342,2.29804425,1987.7,1987.5,0.003]
[1772837739547,1.691,1987.7,1987.5,0.003]
[1772837739752,0.60704425,1987.6,1987.5,0.003]
[1772837740054,2.29804425,1987.7,1987.5,0.003]
[1772837742062,0.60704425,1987.6,1987.5,0.001]
[1772837746754,0.60904425,1987.6,1987.5,0.001]
[1772837747157,0.60904425,1987.6,1987.5,0.003]
[1772837749560,0.60904425,1987.6,1987.5,0.001]
[1772837752170,0.60904425,1987.6,1987.5,0.003]
[1772837756458,0.60904425,1987.6,1987.4,0.001]
[1772837757476,0.002,1987.6,1987.4,0.001]
[1772837757855,0.68284252,1987.6,1987.4,0.001]
[1772837758387,0.68284252,1987.6,1987.4,1.25892492]
[1772837759388,0.68284252,1987.6,1987.5,0.001]
[1772837760585,0.002,1987.8,1987.6,0.64102791]
[1772837765080,0.002,1987.8,1987.7,1.95151845]
[1772837771183,0.002,1987.9,1987.8,0.69378338]
[1772837775484,0.002,1988.0,1987.9,0.69378338]
[1772837777706,0.002,1988.0,1987.9,1.95139191]
[1772837782388,0.002,1988.1,1988.0,0.66862793]
[1772837783710,0.002,1988.1,1988.0,0.66962793]
[1772837784413,0.002,1988.1,1988.0,1.9271732]
[1772837792733,0.002,1988.1,1988.0,1.25854527]
[1772837794238,0.002,1988.1,1988.0,2.00412723]
[1772837796707,0.002,1988.2,1988.1,0.74558196]
[1772837798633,0.002,1988.2,1988.1,2.00306397]
[1772837798938,0.002,1988.2,1988.1,1.25748201]
[1772837800918,0.002,1988.2,1988.0,0.74658196]
[1772837803030,0.002,1988.2,1988.1,1.25748201]
[1772837805743,0.7407295,1988.2,1988.1,1.25748201]
[1772837806844,0.7407295,1988.2,1988.0,0.001]
[1772837807047,0.002,1988.3,1988.0,0.001]
[1772837807228,0.7407295,1988.3,1988.0,0.001]
[1772837807426,0.003,1988.5,1988.0,0.001]
[1772837807748,0.00217939,1988.4,1988.0,0.001]
[1772837809346,0.00217939,1988.4,1988.1,0.001]
[1772837810125,0.002,1988.2,1988.1,0.001]
[1772837814869,0.01868538,1988.3,1988.1,0.001]
[1772837819767,0.002,1988.3,1988.1,0.78825985]
[1772837820846,0.5709478,1988.8,1988.2,0.78725985]
[1772837821365,0.5709478,1988.8,1988.3,1.25735552]
[1772837821568,0.5709478,1988.8,1988.4,0.78725985]
[1772837822082,0.64952181,1988.8,1988.4,0.78725985]
[1772837822237,0.07857401,1988.7,1988.4,0.78725985]
[1772837823155,0.002,1988.5,1988.4,0.78725985]
[1772837824765,0.002,1988.5,1988.4,2.04455214]
[1772837831358,0.68981196,1988.8,1988.5,0.80592029]
[1772837831558,0.36290609,1988.7,1988.5,0.80592029]
[1772837833878,0.36290609,1988.7,1988.6,1.25716584]
[1772837834387,0.22975778,1988.8,1988.7,0.80592029]
[1772837836103,0.23175778,1988.8,1988.7,2.06302291]
[1772837838789,0.23175778,1988.8,1988.7,1.25710262]
[1772837839660,0.15400199,1988.7,1988.5,1.25822017]
[1772837840467,0.15400199,1988.7,1988.5,0.001]
[1772837841279,0.23175778,1988.8,1988.5,0.001]
[1772837841659,0.39859441,1988.8,1988.5,0.001]
[1772837842083,0.23175778,1988.8,1988.5,2.06414888]
[1772837844660,0.23175778,1988.8,1988.6,0.80592029]
[1772837848995,0.23175778,1988.8,1988.7,0.001]
[1772837860106,0.23175778,1988.8,1988.7,0.83068741]
[1772837860586,0.23175778,1988.8,1988.7,2.08779003]
[1772837863991,0.23175778,1988.8,1988.7,1.25810262]
[1772837864191,0.23175778,1988.8,1988.7,2.08779003]
[1772837866795,0.003,1988.9,1988.8,0.82968741]
[1772837867200,10.52707444,1991.8,1989.1,0.82968741]
[1772837867411,0.26119063,1990.7,1989.1,1.35679089]
[1772837867719,0.96517585,1990.8,1989.2,0.82968741]
[1772837867720,0.26119063,1990.3,1989.2,0.82968741]
[1772837867917,0.26428777,1990.1,1989.2,0.82968741]
[1772837868088,0.26428777,1989.9,1989.2,0.82968741]
[1772837868426,0.26428777,1989.7,1988.8,0.82968741]
[1772837868803,0.51293064,1989.5,1989.0,0.82968741]
[1772837869403,6.81387439,1989.6,1989.0,0.82968741]
[1772837869404,6.07027106,1989.4,1989.0,0.82968741]
[1772837869622,0.51293064,1989.3,1988.8,1.25702063]
[1772837869814,0.51293064,1989.3,1988.8,0.82968741]
[1772837870127,5.55734042,1989.2,1988.8,2.08672465]
[1772837870292,5.55734042,1989.2,1988.8,0.82968741]
[1772837870624,6.07090407,1989.2,1988.8,0.82968741]
[1772837871091,7.32770304,1989.2,1988.8,0.82968741]
[1772837874294,5.55734042,1989.1,1988.9,0.001]
[1772837874519,6.07320133,1989.1,1988.9,0.001]
[1772837874697,1.25679897,1989.2,1988.7,0.83068741]
[1772837874900,6.81313939,1989.2,1988.8,0.82968741]
[1772837878229,8.42513939,1989.2,1988.8,0.82968741]
[1772837879926,6.81319496,1989.1,1988.8,0.82968741]
[1772837880109,5.55634042,1989.1,1988.8,1.25703313]
[1772837880427,0.52023183,1988.9,1988.7,0.001]
[1772837880930,0.51955847,1988.7,1988.5,0.001]
[1772837881231,1.623,1988.7,1988.5,0.001]
[1772837881931,0.52245298,1988.6,1988.5,0.001]
[1772837882534,0.52245298,1988.6,1988.2,0.001]
[1772837882755,0.52245298,1988.4,1988.2,0.001]
[1772837884218,6.07739951,1988.3,1988.2,0.001]
[1772837884453,0.52305909,1988.3,1988.0,0.001]
[1772837884661,1.25732638,1988.4,1988.0,0.001]
[1772837884662,2.15705909,1988.2,1988.0,0.001]
[1772837885974,0.52352377,1988.0,1987.8,0.001]
[1772837886325,0.52352377,1988.0,1987.8,1.25866904]
[1772837887651,1.64,1988.1,1987.8,2.27884278]
[1772837887825,7.19334042,1988.1,1987.9,1.02117374]
[1772837888342,1.64,1988.1,1987.9,1.02117374]
[1772837890443,5.55334042,1988.0,1987.9,0.001]
[1772837894164,1.65,1988.1,1987.9,1.02117374]
[1772837894453,6.07278029,1988.0,1987.9,0.001]
[1772837896160,6.06940453,1987.9,1987.7,0.001]
[1772837896526,0.51706411,1987.8,1987.7,0.001]
[1772837898965,6.06940453,1987.8,1987.7,0.001]
[1772837899646,0.51706411,1987.8,1987.7,0.001]
[1772837903571,7.21134042,1987.8,1987.7,1.02117374]
[1772837904268,7.21134042,1987.8,1987.7,0.001]
[1772837906767,7.71498217,1987.8,1987.7,0.001]
[1772837906967,7.71498217,1987.8,1987.6,0.001]
[1772837907168,5.55234042,1987.7,1987.6,0.001]
[1772837909675,6.0512223,1987.7,1987.6,0.001]
[1772837910057,0.49888188,1987.7,1987.5,0.001]
[1772837910248,5.55134042,1987.6,1987.5,0.001]
[1772837910767,1.663,1987.8,1987.6,1.02017374]
[1772837910969,5.55134042,1987.7,1987.6,1.02017374]
[1772837912175,5.55134042,1987.7,1987.5,1.25886163]
[1772837912347,5.55134042,1987.6,1987.5,2.29727011]
[1772837912549,5.55134042,1987.7,1987.5,2.29727011]
[1772837913067,5.55334042,1987.7,1987.5,2.29727011]
[1772837917664,5.55134042,1987.6,1987.5,2.29727011]
[1772837918377,0.002,1987.7,1987.5,2.29727011]
[1772837918687,5.55134042,1987.6,1987.5,2.29727011]
[1772837921457,0.002,1987.7,1987.5,2.29727011]
[1772837921657,5.55134042,1987.6,1987.5,2.29727011]
[1772837925586,5.55334042,1987.6,1987.5,2.29727011]
[1772837929587,0.002,1987.7,1987.5,2.29727011]
[1772837929588,0.002,1987.7,1987.6,1.03840848]
[1772837929793,0.47686945,1988.0,1987.6,1.03840848]
[1772837930090,0.47552974,1988.3,1987.7,1.03840848]
[1772837930592,3.10910176,1988.5,1987.7,1.03840848]
[1772837930767,0.002,1988.5,1987.7,1.03840848]
[1772837931891,0.002,1988.5,1987.9,1.03840848]
[1772837933861,0.002,1988.5,1988.1,1.03840848]
[1772837934064,0.002,1988.8,1988.0,1.25754527]
[1772837934263,0.002,1988.8,1988.1,1.03840848]
[1772837935892,0.002,1988.8,1988.2,1.25741877]
[1772837936077,0.002,1988.8,1988.3,1.03840848]
[1772837937298,0.002,1988.7,1988.3,1.03840848]
[1772837938295,0.002,1988.7,1988.5,1.09078055]
[1772837938532,0.002,1988.8,1988.5,1.09078055]
[1772837940195,0.002,1988.8,1988.7,1.09078055]
[1772837941690,0.002,1989.0,1988.7,1.09078055]
[1772837942296,0.67344254,1989.0,1988.6,2.34685507]
[1772837946805,0.67344254,1989.0,1988.6,1.25716584]
[1772837947309,0.67344254,1989.0,1988.6,2.34685507]
[1772837948992,0.67344254,1989.0,1988.7,0.001]
[1772837949319,0.002,1988.9,1988.7,0.001]
[1772837951080,0.65448907,1988.9,1988.7,0.001]
[1772837952090,0.002,1988.9,1988.7,1.09068923]
[1772837952501,0.002,1988.9,1988.8,1.25703942]
[1772837954080,0.002,1988.9,1988.8,2.34672865]
[1772837962590,0.002,1988.9,1988.8,2.34772865]
[1772837964322,0.6083553,1988.9,1988.7,0.001]
[1772837964513,0.6083553,1988.9,1988.6,0.001]
[1772837965401,0.60195072,1988.7,1988.6,0.001]
[1772837966723,0.60195072,1988.7,1988.4,0.001]
[1772837970136,0.58528901,1988.6,1988.4,0.001]
[1772837972733,0.5744869,1988.5,1988.4,0.001]
[1772837973934,0.5744869,1988.5,1987.8,0.98064065]
[1772837974139,0.57124945,1988.4,1987.8,0.98064065]
[1772837974940,0.5680297,1988.2,1987.8,2.23831195]
[1772837975713,0.5680297,1988.2,1987.8,0.98064065]
[1772837978241,0.55850507,1988.1,1987.8,0.98064065]
[1772837978751,0.55850507,1988.1,1987.6,0.001]
[1772837982549,0.54601566,1988.0,1987.6,0.001]
[1772837984850,0.53681393,1987.9,1987.6,0.001]
[1772837985361,0.53681393,1987.9,1987.2,0.98164065]
[1772837985362,0.53681393,1987.6,1987.1,0.001]
[1772837985566,0.53681393,1987.2,1986.8,0.98164065]
[1772837986017,0.96657202,1987.3,1986.8,0.98164065]
[1772837986224,1.06631851,1987.2,1986.8,0.98164065]
[1772837986424,1.06631851,1987.2,1986.8,0.001]
[1772837986730,1.06631851,1987.1,1986.8,0.001]
[1772837987924,1.06631851,1987.0,1986.7,0.001]
[1772837988430,1.06631851,1987.0,1986.4,2.23919333]
[1772837988939,1.06631851,1986.8,1986.4,0.98064065]
[1772837989339,1.06631851,1986.8,1986.3,0.001]
[1772837989634,1.06631851,1986.6,1986.3,0.001]
[1772837990653,2.22563656,1986.9,1986.3,0.001]
[1772837990951,1.06631851,1986.6,1986.3,0.001]
[1772837991145,1.06631851,1986.5,1986.3,0.001]
[1772837991552,1.06631851,1986.5,1986.0,2.23940442]
[1772837991717,1.06631851,1986.5,1986.0,0.77045044]
[1772837991917,1.06631851,1986.5,1986.0,2.02921809]
[1772837992346,1.06631851,1986.5,1986.1,0.77045044]
[1772837992546,1.06631851,1986.9,1986.1,0.77045044]
[1772837993154,1.06631851,1986.9,1986.3,0.85138036]
[1772837993561,2.32456867,1986.9,1986.3,0.85138036]
[1772837993848,2.67631851,1987.0,1986.3,0.85138036]
[1772837994051,1.06631851,1987.0,1986.3,0.85138036]
[1772837994420,5.03201667,1987.3,1986.3,0.85138036]
[1772837994421,1.611,1987.3,1986.3,0.85138036]
[1772837995441,1.06631851,1987.4,1986.5,0.82606856]
[1772837998068,0.99579723,1987.6,1986.7,0.80316661]
[1772837999964,2.50393731,1987.8,1986.9,0.80248096]
[1772837999965,0.99579723,1987.8,1986.9,0.80248096]
[1772838000136,0.002,1987.5,1986.9,0.80248096]
[1772838000332,0.99579723,1987.9,1986.9,0.80048096]
[1772838000840,0.99779723,1987.6,1986.9,0.80048096]
[1772838001453,0.96739508,1987.5,1986.8,0.001]
[1772838001760,0.96739508,1987.5,1986.8,0.80111792]
[1772838001761,0.99579723,1987.4,1986.8,0.80111792]
[1772838002136,2.25376996,1987.4,1986.9,0.80186789]
[1772838002345,0.99579723,1987.4,1986.9,0.80186789]
[1772838002550,2.27350236,1987.6,1986.9,0.80186789]
[1772838002881,1.01569285,1987.6,1986.9,0.80186789]
[1772838003248,0.002,1987.6,1986.9,0.80186789]
[1772838004171,0.002,1987.6,1987.0,1.25817815]
[1772838004379,0.002,1987.6,1987.1,0.80099337]
[1772838006106,0.002,1987.6,1987.2,1.25805152]
[1772838006390,0.002,1987.6,1987.3,0.80005823]
[1772838006756,0.002,1987.8,1987.3,0.79756479]
[1772838008294,0.002,1987.8,1987.5,0.79710962]
[1772838009550,1.01569285,1987.8,1987.3,0.79658471]
[1772838009755,1.01569285,1987.8,1986.9,0.79604674]
[1772838010159,1.01369285,1987.6,1986.9,0.79604674]
[1772838011285,1.01369285,1987.6,1986.9,2.05428723]
[1772838011492,1.01369285,1987.6,1986.8,1.25925499]
[1772838012385,1.01369285,1987.4,1986.8,0.79409809]
[1772838012980,1.01369285,1987.4,1987.0,0.001]
[1772838015669,1.01369285,1987.2,1987.0,0.001]
[1772838016170,1.01369285,1987.2,1986.9,0.001]
[1772838018265,1.01369285,1987.0,1986.9,0.001]
[1772838020272,1.01369285,1987.0,1986.7,0.001]
[1772838020466,1.01369285,1986.8,1986.7,0.001]
[1772838020664,1.01369285,1986.8,1986.1,9.03393909]
[1772838020665,1.01369285,1986.8,1986.1,2.11846644]
[1772838020893,1.01369285,1986.6,1985.7,2.03968389]
[1772838021191,1.01369285,1986.6,1985.7,2.03968525]
[1772838021895,1.01369285,1986.6,1985.7,0.78068458]
[1772838022185,1.01369285,1986.6,1985.5,1.25907811]
[1772838022562,1.01369285,1986.4,1985.5,1.25907811]
[1772838022762,1.01369285,1986.4,1985.5,2.03837373]
[1772838022963,1.606,1986.3,1985.5,2.03837373]
[1772838023188,1.01369285,1986.2,1985.5,2.03837373]
[1772838024188,1.01369285,1986.2,1985.5,0.77929562]
[1772838024361,1.25849484,1986.5,1985.5,0.77929562]
[1772838024362,1.01369285,1986.4,1985.5,0.77929562]
[1772838024566,2.27214418,1986.6,1985.7,0.77628616]
[1772838024759,1.01369285,1986.9,1985.7,0.77628616]
[1772838024989,1.01369285,1986.8,1985.7,0.77628616]
[1772838025394,1.01369285,1986.8,1985.9,0.77476494]
[1772838026076,3.874871,1987.0,1985.9,0.77476494]
[1772838026900,1.01369285,1986.9,1986.1,0.77171067]
[1772838028899,1.01369285,1986.7,1985.9,0.76865529]
[1772838029281,1.01369285,1986.7,1985.8,0.001]
[1772838029681,1.01369285,1986.7,1985.8,1.25993485]
[1772838031803,1.01369285,1986.5,1985.8,0.001]
[1772838033399,1.01369285,1986.5,1985.7,0.001]
[1772838033400,1.03239406,1986.2,1985.7,0.001]
[1772838033799,1.03239406,1986.0,1985.7,0.001]
[1772838034013,1.03239406,1985.8,1985.7,0.001]
[1772838034703,1.2587483,1986.1,1985.7,0.001]
[1772838034907,1.03239406,1986.0,1985.7,0.001]
[1772838035401,1.03239406,1986.2,1985.7,0.001]
[1772838035804,2.2910918,1986.2,1985.7,0.001]
[1772838035977,1.25869774,1986.2,1985.7,0.001]
[1772838036179,1.03239406,1986.1,1985.7,0.001]
[1772838038006,1.03239406,1986.1,1985.8,0.0011]
[1772838038007,2.29120574,1986.0,1985.8,0.0011]
[1772838039601,1.03239406,1985.9,1985.7,0.001]
[1772838039910,1.03239406,1985.8,1985.7,0.001]
[1772838040301,1.02735919,1985.8,1985.7,0.001]
[1772838041319,1.03239406,1985.9,1985.7,0.001]
[1772838041886,1.03239406,1985.9,1985.5,0.001]
[1772838041887,1.03239406,1985.7,1985.5,0.001]
[1772838042087,1.03239406,1985.6,1984.7,0.75662987]
[1772838045735,1.03239406,1985.4,1984.7,0.75662987]
[1772838045915,1.03239406,1985.4,1984.7,2.01626258]
[1772838046231,2.29147386,1985.6,1984.8,0.75041789]
[1772838048192,2.29147386,1985.6,1985.0,0.7472691]
[1772838048594,1.03239406,1985.5,1985.0,0.7472691]
[1772838050213,2.29152844,1985.5,1985.1,1.25938239]
[1772838050527,1.03239406,1985.4,1985.0,2.00666359]
[1772838051728,1.03239406,1985.4,1985.0,1.25939449]
[1772838054333,1.03239406,1985.4,1984.9,5.77989432]
[1772838054334,1.03239406,1985.2,1984.9,0.0011]
[1772838054638,2.29164958,1985.3,1984.9,0.73888536]
[1772838055306,2.29165733,1985.3,1984.9,0.73888536]
[1772838059438,1.03239406,1985.3,1984.9,1.99835262]
[1772838059808,2.29166619,1985.3,1984.9,0.73888536]
[1772838060009,0.96015874,1985.2,1984.9,0.73888536]
[1772838060213,0.96015874,1985.2,1984.9,1.99838815]
[1772838060629,0.96015874,1985.2,1984.9,1.99839261]
[1772838061311,0.96015874,1985.4,1984.9,1.98778685]
[1772838061620,0.96015874,1985.3,1985.0,1.98658993]
[1772838062325,1.03705277,1985.5,1985.1,0.72611244]
[1772838062705,1.03705277,1985.5,1985.0,1.25939512]
[1772838062932,1.03805277,1985.5,1985.0,1.25939512]
[1772838063408,1.03805277,1985.5,1985.1,0.72450846]
[1772838066161,1.03805277,1985.5,1985.2,1.25931896]
[1772838066713,1.25862223,1986.3,1985.3,0.71709313]
[1772838067039,1.03705277,1986.2,1985.3,0.71709313]
[1772838069644,2.29575201,1986.2,1985.5,0.71391748]
[1772838070851,1.03705277,1986.2,1985.5,0.71391748]
[1772838071341,0.33388833,1986.3,1985.5,0.71391748]
[1772838071516,1.3709411,1986.3,1985.5,0.71391748]
[1772838071719,0.33388833,1986.3,1985.7,0.71070828]
[1772838073918,0.33388833,1986.3,1985.9,0.70588624]
[1772838074617,0.001,1986.1,1985.9,0.70588624]
[1772838075642,0.001,1986.1,1985.7,1.96324093]
[1772838076237,0.001,1986.1,1985.8,0.70267486]
[1772838077635,1.03805277,1986.1,1985.8,0.70267486]
[1772838078129,2.29680477,1986.1,1985.6,5.7356734]
[1772838078449,1.03705277,1986.0,1985.6,5.7356734]
[1772838079630,1.03705277,1986.0,1985.6,0.69946702]
[1772838080151,1.25887506,1985.9,1985.6,0.69946702]
[1772838080742,2.29592783,1985.9,1985.4,0.69625039]
[1772838082252,2.29592783,1985.9,1985.5,1.95217749]
[1772838082748,1.03705277,1985.9,1985.5,1.95217749]
[1772838082925,2.2959287,1985.9,1985.5,1.95217749]
[1772838084159,1.03705277,1985.9,1985.5,1.95217749]
[1772838085236,1.03705277,1985.9,1985.6,0.68823358]
[1772838086462,1.03805277,1986.1,1985.7,0.68662897]
[1772838086754,0.001,1986.0,1985.7,0.68662897]
[1772838087125,0.001,1986.1,1985.7,0.68402795]
[1772838089960,0.001,1986.1,1985.9,0.67927024]
[1772838091364,1.03705277,1986.0,1985.6,1.26014329]
[1772838091566,1.03705277,1986.0,1985.6,0.0011]
[1772838092471,2.17731156,1985.9,1985.6,0.0011]
[1772838093544,2.17731156,1985.9,1985.6,0.67770223]
[1772838094064,0.9184365,1985.9,1985.6,0.67770223]
[1772838095932,1.25979639,1986.1,1985.7,0.67181861]
[1772838096137,0.9184365,1986.0,1985.7,0.67181861]
[1772838097265,2.17820837,1986.1,1985.7,0.67181861]
[1772838098741,0.9184365,1986.0,1985.6,0.0011]
[1772838099262,0.9184365,1986.0,1985.6,0.66813811]
[1772838100673,0.9184365,1986.0,1985.7,0.0011]
[1772838100891,2.17731156,1985.9,1985.7,0.0011]
[1772838101367,0.9194365,1985.9,1985.7,0.0011]
[1772838102065,0.9194365,1985.9,1985.6,0.0011]
[1772838102953,0.9184365,1985.7,1985.6,0.0011]
[1772838103468,0.9184365,1985.7,1985.3,0.0011]
[1772838103772,0.9184365,1985.7,1985.3,0.0022]
[1772838105064,0.9184365,1985.5,1985.3,0.0022]
[1772838105446,0.9184365,1985.5,1985.3,0.0011]
[1772838107374,0.9184365,1985.3,1985.2,0.0011]
[1772838110157,2.17769202,1985.3,1985.2,0.0011]
[1772838110348,0.9184365,1985.2,1985.0,0.0011]
[1772838110676,0.9184365,1985.2,1985.0,0.0022]
[1772838111189,0.9184365,1985.2,1985.0,0.0011]
[1772838112575,1.25937073,1985.2,1985.0,0.0011]
[1772838112769,0.9184365,1985.1,1985.0,0.0011]
[1772838113950,0.9184365,1985.1,1984.9,0.0011]
[1772838114150,0.9184365,1985.1,1984.9,0.0022]
[1772838114654,1.25944584,1985.0,1984.9,0.0022]
[1772838114854,2.17788234,1985.0,1984.9,0.0022]
[1772838121087,0.9184365,1985.0,1984.9,0.0022]
[1772838121290,1.25944584,1985.0,1984.8,0.0011]
[1772838121483,0.9213118,1984.9,1984.3,0.63625932]
[1772838121672,0.9213118,1984.9,1984.5,0.63625932]
[1772838122468,0.9213118,1984.9,1984.2,1.25995363]
[1772838122469,0.9213118,1984.9,1984.3,0.63496684]
[1772838123991,0.9213118,1984.9,1984.4,0.63192725]
[1772838123992,0.95753411,1984.7,1984.4,0.63192725]
[1772838124774,0.95753411,1984.7,1984.5,0.0011]
[1772838126272,1.2594776,1985.0,1984.6,0.62882617]
[1772838126473,0.95753411,1984.9,1984.6,0.0011]
[1772838127087,0.95753411,1984.9,1984.7,0.0011]
[1772838127482,0.001,1984.8,1984.7,0.0011]
[1772838128392,0.001,1984.8,1984.6,0.0011]
[1772838128586,0.001,1984.8,1984.7,0.62683367]
[1772838128764,0.95753411,1985.1,1984.7,0.62573367]
[1772838129892,0.001,1985.2,1984.7,0.62573367]
[1772838130089,0.95853411,1985.2,1984.7,0.62573367]
[1772838130389,0.95853411,1985.2,1984.8,1.88225659]
[1772838131165,0.95853411,1985.2,1984.9,0.61995249]
[1772838133172,0.95853411,1985.2,1984.9,1.87943036]
[1772838135595,0.001,1985.2,1984.9,1.25947787]
[1772838135800,0.001,1985.2,1984.9,1.86599594]
[1772838136006,0.95853411,1985.2,1984.9,1.86599594]
[1772838136378,0.001,1985.2,1984.9,1.86599594]
[1772838137282,0.95853411,1985.2,1984.9,1.86599594]
[1772838139504,0.001,1985.1,1984.9,1.86599594]
[1772838141307,0.95753411,1985.0,1984.7,5.63196265]